bitfinex-derivatives/quotes_BNBF0:USTF0_20250101
["timestamp","ask_amount","ask_price","bid_price","bid_amount"]
[1735735408840,0.26038681,707.45,706.45,1.05823992]
[1735735409140,0.26038602,707.44,706.47,1.05823992]
[1735735409340,0.26038602,707.43,706.47,1.05823992]
[1735735409541,0.26038602,707.42,706.47,2.36323992]
[1735735409742,1.47690218,707.46,706.47,2.36323992]
[1735735410036,0.26038219,707.45,706.47,2.36323992]
[1735735410438,0.26038219,707.45,706.48,1.05823992]
[1735735411743,0.26038219,707.45,706.47,1.305]
[1735735412243,1.47690218,707.46,706.47,1.305]
[1735735412439,0.26037728,707.45,706.47,1.305]
[1735735413038,0.26037728,707.45,706.48,1.054]
[1735735413440,1.47690218,707.46,706.48,1.054]
[1735735422650,0.28270549,707.45,706.48,1.054]
[1735735425853,0.28270549,707.45,706.5,1.05823992]
[1735735427049,0.28270549,707.45,706.55,1.05823992]
[1735735428257,0.28270549,707.45,706.67,1.05823992]
[1735735429557,0.28270549,707.45,706.61,1.05823992]
[1735735431254,0.28270549,707.45,706.58,1.05823992]
[1735735432162,0.28270549,707.45,706.49,1.05823992]
[1735735433158,0.28270549,707.45,706.48,3.36623992]
[1735735434360,0.28270549,707.45,706.48,2.308]
[1735735435058,0.28270549,707.45,706.48,1.254]
[1735735436162,0.28270549,707.45,706.49,0.885]
[1735735442375,0.28270549,707.45,706.49,1.94323992]
[1735735444069,0.28270549,707.45,706.49,3.05323992]
[1735735446276,0.28270549,707.45,706.49,1.995]
[1735735447277,0.28270549,707.45,706.49,3.05323992]
[1735735448474,0.28270549,707.45,706.51,1.05823992]
[1735735449870,0.28270549,707.45,706.49,1.995]
[1735735449871,0.28270549,707.45,706.53,1.05823992]
[1735735452379,0.28270549,707.45,706.58,1.05823992]
[1735735453680,0.28270549,707.45,706.62,1.05823992]
[1735735454982,0.28270549,707.45,706.64,1.05823992]
[1735735456083,0.28270549,707.45,706.64,2.28823992]
[1735735456282,0.28270549,707.45,706.74,1.05823992]
[1735735457681,0.28270549,707.45,706.75,1.05823992]
[1735735457881,1.47655231,707.73,706.75,1.05823992]
[1735735458076,0.26026352,707.72,706.75,1.05823992]
[1735735458482,1.47655231,707.73,706.75,1.05823992]
[1735735458680,0.26026344,707.72,706.75,1.05823992]
[1735735458986,0.26026344,707.72,706.83,1.05823992]
[1735735459180,1.47655231,707.73,706.83,1.05823992]
[1735735459383,0.26027438,707.72,706.83,1.05823992]
[1735735460482,0.26027438,707.72,706.64,2.28823992]
[1735735460483,0.26027438,707.72,706.81,1.05823992]
[1735735461184,1.47655231,707.73,706.81,1.05823992]
[1735735461385,0.26027547,707.72,706.8,1.05823992]
[1735735463088,0.26027547,707.72,706.78,1.05823992]
[1735735463889,0.26029435,707.71,706.78,1.05823992]
[1735735464091,0.26029435,707.7,706.78,1.05823992]
[1735735464283,0.26029435,707.69,706.78,1.05823992]
[1735735464487,0.26029435,707.68,706.78,1.05823992]
[1735735464685,0.26029435,707.67,706.78,1.05823992]
[1735735464885,0.26029435,707.66,706.78,1.05823992]
[1735735465191,0.26029435,707.65,706.78,1.05823992]
[1735735465385,1.47655231,707.73,706.64,1.23]
[1735735465386,0.26029435,707.64,706.72,1.05823992]
[1735735465588,0.26029435,707.63,706.72,1.05823992]
[1735735465892,1.47655231,707.73,706.72,1.05823992]
[1735735466093,0.26029845,707.72,706.72,1.05823992]
[1735735466488,0.26029845,707.71,706.72,1.05823992]
[1735735466687,0.26029845,707.7,706.71,1.05823992]
[1735735466893,0.26029845,707.69,706.71,1.05823992]
[1735735467187,0.26029935,707.68,706.71,1.05823992]
[1735735467394,0.26029935,707.67,706.72,1.131]
[1735735467586,0.26029935,707.66,706.72,1.131]
[1735735467790,0.26029935,707.65,706.72,1.131]
[1735735468091,0.26029935,707.64,706.72,1.131]
[1735735468392,0.26029905,707.63,706.72,1.131]
[1735735471397,0.26029905,707.63,706.72,2.528]
[1735735471895,0.26031906,707.62,706.72,2.528]
[1735735472097,0.26031906,707.61,706.72,2.528]
[1735735472296,0.26031906,707.6,706.72,2.528]
[1735735472494,0.26031906,707.59,706.72,2.528]
[1735735472696,0.26031906,707.58,706.72,2.528]
[1735735472894,1.47657841,707.64,706.72,2.528]
[1735735473094,0.26031771,707.63,706.72,2.528]
[1735735475000,1.47657841,707.64,706.72,2.528]
[1735735475200,0.26031905,707.63,706.72,2.528]
[1735735475698,0.2603208,707.62,706.72,2.528]
[1735735475898,0.2603208,707.61,706.72,2.528]
[1735735476101,0.2603208,707.6,706.72,2.528]
[1735735476302,0.2603208,707.59,706.72,2.528]
[1735735476493,0.2603208,707.58,706.72,2.528]
[1735735476796,1.47657841,707.64,706.72,2.528]
[1735735476995,0.26031578,707.63,706.72,2.528]
[1735735477394,1.47657841,707.64,706.72,2.528]
[1735735478498,1.47657841,707.64,706.72,1.397]
[1735735479393,0.26037125,707.63,706.72,1.397]
[1735735479593,1.47657841,707.64,706.72,1.397]
[1735735479900,0.28263757,707.62,706.72,1.397]
[1735735481999,0.26036838,707.61,706.73,1.131]
[1735735482896,0.28263757,707.62,706.73,1.131]
[1735735483091,0.26036924,707.61,706.73,1.131]
[1735735483500,0.28263757,707.62,706.73,2.286]
[1735735483798,0.26036987,707.61,706.73,2.286]
[1735735484602,0.28264556,707.6,706.73,2.286]
[1735735484793,0.26036987,707.59,706.73,2.286]
[1735735484997,0.54302306,707.58,706.73,2.286]
[1735735485200,0.26036951,707.57,706.73,2.286]
[1735735485794,1.47683951,707.56,706.73,2.286]
[1735735486001,0.26036951,707.55,706.73,2.286]
[1735735486301,1.47683951,707.56,706.73,2.286]
[1735735486703,0.28266553,707.55,706.73,2.286]
[1735735488706,0.2603674,707.54,706.73,2.286]
[1735735488900,0.28266553,707.55,706.73,2.286]
[1735735489706,0.26036544,707.54,706.73,2.286]
[1735735489906,0.28266553,707.55,706.73,2.286]
[1735735490399,0.26036461,707.54,706.73,2.286]
[1735735491007,0.28266553,707.55,706.73,2.286]
[1735735491304,0.26036665,707.54,706.73,2.286]
[1735735491602,0.28267352,707.53,706.73,2.286]
[1735735492206,0.26037141,707.52,706.73,2.286]
[1735735493206,0.28268151,707.51,706.73,2.286]
[1735735496008,0.26037616,707.5,706.73,2.286]
[1735735496205,0.2826895,707.49,706.73,2.286]
[1735735496403,0.26037616,707.48,706.73,2.286]
[1735735496806,1.47694919,707.47,706.73,2.286]
[1735735497009,0.26037616,707.46,706.73,2.286]
[1735735498309,0.26037023,707.45,706.73,2.286]
[1735735498508,0.26037023,707.44,706.73,2.286]
[1735735498707,0.26037023,707.43,706.73,2.286]
[1735735498910,0.26036982,707.42,706.73,1.155]
[1735735499111,0.26036982,707.41,706.73,1.155]
[1735735499410,1.47694919,707.47,706.73,1.155]
[1735735499609,0.26037023,707.46,706.73,1.155]
[1735735500110,0.26037023,707.46,706.74,0.896]
[1735735500810,1.47694919,707.47,706.74,0.896]
[1735735500811,0.26037144,707.45,706.74,0.896]
[1735735501012,0.26037144,707.44,706.74,0.896]
[1735735501310,0.26037144,707.43,706.74,0.896]
[1735735501508,0.26037144,707.42,706.74,0.896]
[1735735501706,0.26037144,707.41,706.74,2.168]
[1735735501906,0.26037144,707.4,706.74,2.168]
[1735735502111,0.26037144,707.39,706.74,2.168]
[1735735502311,1.47694919,707.47,706.74,2.168]
[1735735502507,0.26037833,707.46,706.74,2.168]
[1735735504413,1.47694919,707.47,706.74,2.168]
[1735735514818,0.26042956,707.46,706.74,2.168]
[1735735515919,1.47694919,707.47,706.74,2.168]
[1735735516114,0.26043308,707.46,706.74,2.168]
[1735735516521,1.05584279,707.45,706.74,2.168]
[1735735516722,0.26043308,707.44,706.74,2.168]
[1735735516917,1.05584279,707.45,706.74,2.168]
[1735735517820,1.47694919,707.47,706.74,2.168]
[1735735518116,1.47694919,707.47,706.74,1.272]
[1735735518726,0.26040024,707.46,706.74,1.272]
[1735735519122,0.26040024,707.46,706.75,0.982]
[1735735520627,0.26040024,707.46,706.75,1.919]
[1735735521031,1.47694919,707.47,706.75,1.919]
[1735735521327,0.26037126,707.46,706.75,1.919]
[1735735521827,0.26037132,707.45,706.75,1.919]
[1735735522028,0.26037132,707.44,706.75,1.919]
[1735735522329,0.26037132,707.43,706.75,1.919]
[1735735522528,0.26037132,707.42,706.75,1.919]
[1735735522728,0.26037132,707.41,706.75,1.919]
[1735735522929,0.26037132,707.4,706.75,1.919]
[1735735523129,1.47694919,707.47,706.75,1.919]
[1735735523331,0.26037335,707.46,706.75,1.919]
[1735735523627,0.26037335,707.45,706.75,1.919]
[1735735526236,1.47694919,707.46,706.75,1.919]
[1735735526428,0.26037201,707.45,706.75,1.919]
[1735735528831,1.47694919,707.46,706.75,1.919]
[1735735529134,1.05584279,707.41,706.75,1.919]
[1735735529335,0.26040079,707.4,706.75,1.919]
[1735735529539,0.26040055,707.39,706.75,1.919]
[1735735529834,0.26040055,707.38,706.75,1.919]
[1735735530033,0.26040055,707.37,706.75,1.919]
[1735735530236,0.26040055,707.36,706.75,1.919]
[1735735530531,0.26040055,707.35,706.75,1.919]
[1735735530833,0.26040055,707.34,706.75,1.919]
[1735735531137,1.05584279,707.42,706.75,1.919]
[1735735531333,0.26039909,707.41,706.75,1.919]
[1735735531536,1.05584279,707.43,706.75,1.919]
[1735735531731,0.26040148,707.42,706.75,1.919]
[1735735532431,1.31624427,707.42,706.75,1.919]
[1735735532637,0.26040148,707.41,706.75,1.919]
[1735735533839,1.05584279,707.39,706.75,1.919]
[1735735534033,0.26040148,707.38,706.75,1.919]
[1735735534437,1.47716339,707.37,706.75,1.919]
[1735735534638,0.26040148,707.36,706.75,1.919]
[1735735535042,1.31624427,707.36,706.75,1.919]
[1735735535338,0.26040148,707.35,706.75,1.919]
[1735735536640,1.31624427,707.35,706.75,1.919]
[1735735536839,0.26040148,707.34,706.75,1.919]
[1735735538043,0.26040148,707.33,706.75,1.919]
[1735735538239,0.26043813,707.32,706.75,1.919]
[1735735538438,0.26043813,707.31,706.75,1.919]
[1735735538635,2.53300618,707.37,706.75,1.919]
[1735735538636,0.26043813,707.3,706.75,1.919]
[1735735538835,0.26043813,707.29,706.75,1.919]
[1735735539038,0.26043813,707.28,706.75,1.919]
[1735735539242,0.26043813,707.27,706.75,1.919]
[1735735539443,0.26044335,707.26,706.75,1.919]
[1735735539637,0.26044335,707.25,706.75,1.919]
[1735735539942,0.26044335,707.24,706.75,1.919]
[1735735540143,2.53300618,707.37,706.75,1.919]
[1735735540339,0.26044687,707.36,706.75,1.919]
[1735735541643,1.47716339,707.37,706.75,1.919]
[1735735548144,1.47716339,707.37,706.75,0.937]
[1735735549649,1.47716339,707.37,706.76,1.131]
[1735735551149,1.47716339,707.37,706.76,2.271]
[1735735551447,0.26045956,707.36,706.76,2.271]
[1735735552650,1.47716339,707.37,706.76,2.271]
[1735735552852,0.26045698,707.36,706.76,2.271]
[1735735553245,1.47716339,707.37,706.76,2.271]
[1735735553452,0.26045715,707.36,706.76,2.271]
[1735735554047,0.28274545,707.35,706.76,2.271]
[1735735554247,0.26045715,707.34,706.76,2.271]
[1735735555247,0.28275345,707.33,706.76,2.271]
[1735735555446,0.26045715,707.32,706.76,2.271]
[1735735556655,0.28276144,707.31,706.76,2.271]
[1735735556853,0.26045715,707.3,706.76,2.271]
[1735735557054,0.28276944,707.29,706.76,2.271]
[1735735557353,0.26045715,707.28,706.76,2.271]
[1735735557553,0.28277744,707.27,706.76,2.271]
[1735735557754,0.26045715,707.26,706.76,2.271]
[1735735557948,0.28277744,707.27,706.76,2.271]
[1735735564657,0.26044815,707.26,706.76,2.271]
[1735735565048,0.26044926,707.25,706.76,2.271]
[1735735565252,0.26045254,707.24,706.76,2.271]
[1735735565551,0.26045254,707.23,706.76,2.271]
[1735735565755,0.28277744,707.27,706.76,2.271]
[1735735565955,0.26045513,707.26,706.76,2.271]
[1735735570349,0.2604479,707.25,706.76,2.271]
[1735735570555,0.2604479,707.24,706.76,2.271]
[1735735571955,0.2604479,707.23,706.76,2.271]
[1735735572257,0.2604479,707.22,706.76,2.271]
[1735735572448,0.2604479,707.21,706.76,2.271]
[1735735572653,1.05584279,707.26,706.76,2.271]
[1735735572851,0.26044686,707.25,706.76,2.271]
[1735735573052,0.26044026,707.24,706.76,2.271]
[1735735575661,0.26044612,707.23,706.76,2.271]
[1735735575862,0.26044612,707.22,706.76,2.271]
[1735735576056,1.47725223,707.25,706.76,2.271]
[1735735576363,0.26044449,707.24,706.76,2.271]
[1735735576560,0.26044449,707.24,706.76,1.14]
[1735735577661,0.26044449,707.24,706.77,0.928]
[1735735578356,1.47725223,707.25,706.77,0.928]
[1735735578559,0.26044916,707.24,706.77,0.928]
[1735735580257,0.26044916,707.24,706.77,2.251]
[1735735580858,1.47725223,707.25,706.77,2.251]
[1735735582158,0.26043367,707.24,706.77,2.251]
[1735735582357,1.47725223,707.25,706.77,2.251]
[1735735582556,0.26043894,707.24,706.77,2.251]
[1735735583161,2.53309502,707.25,706.77,2.251]
[1735735584365,1.47725223,707.25,706.77,2.251]
[1735735597975,0.28278943,707.24,706.77,2.251]
[1735735602777,0.28278943,707.24,706.77,1.323]
[1735735603783,0.28278943,707.24,706.78,1.131]
[1735735605085,0.26047743,707.23,706.78,1.131]
[1735735605288,0.26047743,707.23,706.78,2.138]
[1735735606880,0.28279743,707.22,706.78,2.138]
[1735735607082,0.26047743,707.21,706.78,2.138]
[1735735607289,0.26048617,707.2,706.78,2.138]
[1735735607489,0.26048617,707.19,706.78,2.138]
[1735735607688,0.28279743,707.22,706.78,2.138]
[1735735607890,0.26049185,707.21,706.78,2.138]
[1735735608091,0.26049112,707.2,706.78,2.138]
[1735735608286,0.28279743,707.22,706.78,2.138]
[1735735608888,0.26048724,707.21,706.78,2.138]
[1735735609084,0.28279743,707.22,706.78,2.138]
[1735735610088,0.26047883,707.21,706.78,2.138]
[1735735610589,0.28279743,707.22,706.78,2.138]
[1735735610886,0.26048719,707.21,706.78,2.138]
[1735735611192,0.26048856,707.2,706.78,2.138]
[1735735611388,0.26048884,707.19,706.78,2.138]
[1735735611588,0.28279743,707.22,706.78,2.138]
[1735735611789,0.26048885,707.21,706.78,2.138]
[1735735612290,0.26050711,707.2,706.78,2.138]
[1735735612490,0.26050711,707.19,706.78,2.138]
[1735735612790,0.28279743,707.22,706.78,2.138]
[1735735612990,0.26050661,707.21,706.78,2.138]
[1735735614997,0.26053864,707.2,706.78,2.138]
[1735735615296,0.26053898,707.19,706.78,2.138]
[1735735615492,0.26053898,707.21,706.78,2.138]
[1735735615791,0.26053898,707.2,706.78,2.138]
[1735735615994,0.26053898,707.19,706.78,2.138]
[1735735616196,0.26053898,707.18,706.78,2.138]
[1735735616494,0.26053898,707.17,706.78,2.138]
[1735735616697,0.26053898,707.16,706.78,2.138]
[1735735616891,0.26053898,707.15,706.78,2.138]
[1735735617091,1.47748219,707.17,706.78,2.138]
[1735735617291,0.26053841,707.16,706.78,2.138]
[1735735622299,0.26056288,707.15,706.78,2.138]
[1735735622602,0.26056288,707.14,706.78,1.328]
[1735735622899,1.47748219,707.17,706.78,1.328]
[1735735623103,0.26056306,707.16,706.78,1.328]
[1735735623295,0.26056306,707.16,706.78,0.2979]
[1735735623898,0.26058009,707.15,706.78,0.2979]
[1735735624100,0.26058009,707.14,706.78,0.2979]
[1735735624401,0.26058009,707.13,706.79,1.131]
[1735735624605,0.26058009,707.12,705.77,1.05823992]
[1735735624803,0.26058009,707.11,705.7,1.05823992]
[1735735625004,1.47748219,707.17,705.7,1.05823992]
[1735735625202,0.26055781,707.16,705.7,1.05823992]
[1735735625904,0.26055781,707.16,705.71,1.103]
[1735735626105,0.26055781,707.16,705.74,1.05823992]
[1735735626601,1.47748219,707.17,705.74,1.05823992]
[1735735626805,0.2605448,707.16,705.74,1.05823992]
[1735735626996,0.26054152,707.15,705.74,1.05823992]
[1735735627200,0.26054152,707.15,705.71,1.103]
[1735735627201,0.26054152,707.14,705.76,1.05823992]
[1735735627397,1.47748219,707.17,705.76,1.05823992]
[1735735627601,0.26054142,707.16,705.76,1.05823992]
[1735735628200,0.26054142,707.16,705.82,1.05823992]
[1735735629302,1.47748219,707.17,705.82,1.05823992]
[1735735629603,1.47748219,707.17,705.71,1.103]
[1735735629604,1.47748219,707.17,705.85,1.05823992]
[1735735630802,1.47748219,707.17,705.87,1.05823992]
[1735735632700,0.26047106,707.16,705.87,1.05823992]
[1735735632899,1.47748219,707.17,705.71,1.103]
[1735735632900,0.2604757,707.15,706.18,1.05823992]
[1735735633106,1.47748219,707.17,706.18,1.05823992]
[1735735634005,0.26048501,707.16,706.18,1.05823992]
[1735735634307,0.26048501,707.16,705.72,0.72342655]
[1735735634308,0.26048501,707.16,706.15,1.05823992]
[1735735635300,0.26048333,707.15,706.15,1.05823992]
[1735735635501,1.47748219,707.17,706.15,1.05823992]
[1735735635700,1.47748219,707.17,705.72,0.72342655]
[1735735635701,1.47748219,707.17,706.08,1.05823992]
[1735735636907,1.47748219,707.17,706.18,1.05823992]
[1735735638703,1.47748219,707.17,706.17,1.05823992]
[1735735639912,1.47748219,707.17,706.16,1.05823992]
[1735735641311,1.47748219,707.17,706.14,1.05823992]
[1735735642321,1.47748219,707.17,705.72,0.72342655]
[1735735642322,1.47748219,707.17,706.17,1.05823992]
[1735735643012,1.47748219,707.17,706.18,1.082]
[1735735643513,1.47748219,707.17,706.18,2.14023992]
[1735735645708,1.47748219,707.17,706.18,1.082]
[1735735648107,0.28279743,707.22,706.18,1.082]
[1735735656120,0.28279743,707.22,706.18,2.421]
[1735735657824,0.28279743,707.22,706.21,1.05823992]
[1735735658524,0.28279743,707.22,706.22,1.05823992]
[1735735659218,0.28279743,707.22,706.23,1.006]
[1735735661928,0.28279743,707.22,706.24,1.05823992]
[1735735663021,0.28279743,707.22,706.26,1.05823992]
[1735735664320,0.28279743,707.22,706.23,1.006]
[1735735669328,0.28279743,707.22,706.23,2.165]
[1735735674028,0.28279743,707.22,706.24,1.05823992]
[1735735675232,0.28279743,707.22,706.23,2.165]
[1735735686443,0.28279743,707.22,706.23,1.159]
[1735735687442,0.28279743,707.22,706.24,1.132]
[1735735688946,0.2604823,707.21,706.24,2.263]
[1735735689649,1.47765995,707.2,706.24,2.263]
[1735735689845,0.2604823,707.19,706.24,2.263]
[1735735692651,1.47765995,707.2,706.24,2.263]
[1735735692951,0.26049046,707.19,706.24,2.263]
[1735735693146,0.54329988,707.19,706.24,2.263]
[1735735693350,0.26049046,707.18,706.24,2.263]
[1735735694152,0.28280942,707.19,706.24,2.263]
[1735735704063,0.26052015,707.18,706.24,2.263]
[1735735704561,0.26052015,707.18,706.24,1.131]
[1735735705564,1.05584279,707.12,706.24,1.131]
[1735735705759,0.26052015,707.11,706.25,1.11]
[1735735706160,1.47786912,707.1,706.25,1.11]
[1735735706460,0.26052015,707.09,706.25,1.11]
[1735735707261,0.26052015,707.09,706.25,2.067]
[1735735708663,0.26054324,707.08,706.25,2.067]
[1735735708857,0.26054324,707.07,706.25,2.067]
[1735735709057,0.26054324,707.06,706.25,2.067]
[1735735709262,0.26054324,707.05,706.25,2.067]
[1735735709462,0.26054324,707.04,706.25,2.067]
[1735735709658,0.26054324,707.03,706.25,2.067]
[1735735709864,0.26054324,707.02,706.25,2.067]
[1735735710063,0.26054324,707.01,706.25,2.067]
[1735735710363,0.26054324,707.0,706.25,2.067]
[1735735710559,0.26054324,706.99,706.25,2.067]
[1735735710762,1.05584279,707.07,706.25,2.067]
[1735735710962,0.26053213,707.06,706.25,2.067]
[1735735711158,0.26053213,707.05,706.25,2.067]
[1735735711363,0.26053184,707.04,706.25,2.067]
[1735735711563,0.26053184,707.03,706.25,2.067]
[1735735711761,0.26053184,707.02,706.25,2.067]
[1735735712065,0.26053184,707.01,706.25,2.067]
[1735735712264,0.26053184,707.0,706.25,2.067]
[1735735712462,0.26053184,706.99,706.25,2.067]
[1735735712663,0.26053184,706.98,706.25,2.067]
[1735735712963,0.26053184,706.97,706.25,2.067]
[1735735713164,0.26053184,706.96,706.25,2.067]
[1735735713361,0.26053184,706.95,706.25,2.067]
[1735735713561,0.26053184,706.94,706.25,2.067]
[1735735713765,0.26053184,706.93,706.25,2.067]
[1735735713966,1.05584279,707.06,706.25,2.067]
[1735735714266,0.26054703,707.05,706.25,2.067]
[1735735715065,0.26054703,707.04,706.25,2.067]
[1735735715268,0.26054703,707.03,706.25,2.067]
[1735735715566,0.26054703,707.02,706.25,2.067]
[1735735715764,0.26054703,707.01,706.25,2.067]
[1735735716067,0.26054703,707.0,706.25,2.067]
[1735735716366,0.26054703,706.99,706.25,2.067]
[1735735716561,1.47794758,706.99,706.25,2.067]
[1735735716767,0.26057094,706.98,706.25,0.957]
[1735735716963,0.54346437,706.98,706.25,0.957]
[1735735717268,0.26057476,706.97,706.25,0.957]
[1735735717766,0.26057476,706.97,706.26,0.915]
[1735735718367,0.28289343,706.98,706.26,0.915]
[1735735722071,0.26057033,706.97,706.26,0.915]
[1735735722267,0.28290143,706.96,706.26,0.915]
[1735735722472,0.26057033,706.95,706.26,0.915]
[1735735722771,0.28290143,706.96,706.26,0.915]
[1735735727170,0.26058157,706.95,706.26,0.915]
[1735735729977,0.54351106,706.94,706.26,0.915]
[1735735730177,0.26060162,706.93,706.26,0.915]
[1735735732472,0.26060577,706.92,706.26,2.138]
[1735735732676,0.54352721,706.91,706.26,2.138]
[1735735732871,0.26060577,706.9,706.26,1.223]
[1735735733071,1.73874168,706.9,706.26,1.223]
[1735735733276,0.26060869,706.89,706.26,1.223]
[1735735733578,0.54353814,706.89,706.26,1.223]
[1735735733877,0.26061142,706.88,706.26,1.223]
[1735735734078,0.26061142,706.88,706.27,1.084]
[1735735736874,0.26060895,706.87,706.27,1.084]
[1735735737180,0.26060895,706.86,706.27,1.084]
[1735735737379,0.26060895,706.85,706.27,1.084]
[1735735737679,0.26060895,706.84,706.27,1.084]
[1735735737879,0.26060895,706.88,706.27,1.084]
[1735735738080,0.26060895,706.87,706.27,1.084]
[1735735738379,0.26060895,706.86,706.27,1.084]
[1735735738577,0.26060895,706.85,706.27,1.084]
[1735735738879,0.26060895,706.84,706.27,1.084]
[1735735739081,0.26060895,706.83,706.27,1.084]
[1735735739380,0.26060895,706.82,706.27,1.084]
[1735735739575,0.28292945,706.89,706.27,1.084]
[1735735739775,0.26061251,706.88,706.27,1.084]
[1735735741281,0.28292945,706.89,706.27,1.084]
[1735735749984,0.28292945,706.89,706.26,1.223]
[1735735751185,0.28292945,706.89,706.27,1.075]
[1735735757993,0.28292945,706.89,706.27,2.436]
[1735735777311,0.28292945,706.89,706.27,1.361]
[1735735778304,0.28292945,706.89,706.28,0.963]
[1735735779909,0.28292945,706.89,705.92,1.05823992]
[1735735780115,1.73905835,706.88,706.15,1.06205391]
[1735735780409,0.26068173,706.87,706.15,1.06205391]
[1735735781015,0.26068173,706.87,705.89,1.05823992]
[1735735781208,0.26068173,706.87,706.16,1.132]
[1735735781615,1.31652452,706.87,706.16,1.132]
[1735735781813,0.26068173,706.86,706.16,1.132]
[1735735782007,0.54368215,706.85,706.16,1.132]
[1735735782212,0.26073669,706.84,706.16,1.132]
[1735735783114,0.28295346,706.83,706.16,1.132]
[1735735783310,0.26073669,706.82,706.16,1.132]
[1735735784619,0.28295346,706.83,706.16,1.132]
[1735735784818,0.26072061,706.82,706.16,1.132]
[1735735787224,0.26075346,706.81,706.16,1.132]
[1735735787423,0.26075346,706.8,706.16,1.132]
[1735735787616,0.26075346,706.79,706.16,1.132]
[1735735787816,0.28295346,706.83,706.16,1.132]
[1735735788020,0.26075412,706.82,706.16,1.132]
[1735735789924,0.26075895,706.81,706.16,1.132]
[1735735790117,0.26075895,706.8,706.16,1.132]
[1735735790322,0.26075895,706.79,706.16,1.132]
[1735735790523,0.26075895,706.78,706.16,1.132]
[1735735794224,0.28297748,706.77,706.16,1.132]
[1735735794525,0.26075895,706.76,706.16,1.132]
[1735735795123,0.26075911,706.75,706.16,1.132]
[1735735795321,0.26075911,706.74,706.16,1.132]
[1735735795623,0.26075911,706.73,706.16,1.132]
[1735735795824,0.26076538,706.72,706.16,1.132]
[1735735796022,0.26076538,706.71,706.16,1.132]
[1735735796222,0.26076538,706.7,706.16,1.132]
[1735735796431,0.26076538,706.69,706.16,1.132]
[1735735796729,0.26076538,706.68,706.16,1.132]
[1735735796927,0.26076538,706.67,706.16,1.132]
[1735735797127,0.26076538,706.66,706.16,1.132]
[1735735797322,0.26076538,706.65,706.16,1.132]
[1735735797524,0.26076538,706.64,706.16,1.132]
[1735735797728,0.26076538,706.63,706.16,1.132]
[1735735797928,0.26076538,706.76,706.16,1.132]
[1735735798125,0.26076538,706.75,706.16,1.132]
[1735735798424,0.26076538,706.74,706.16,1.132]
[1735735798630,0.28297748,706.77,706.16,1.132]
[1735735798631,0.26076538,706.73,706.16,1.132]
[1735735798830,0.26076538,706.72,706.16,1.132]
[1735735799031,0.28297748,706.77,706.16,1.132]
[1735735799032,0.26076538,706.71,706.16,1.132]
[1735735799233,0.26076538,706.7,706.16,1.132]
[1735735799432,0.26076538,706.69,706.16,1.132]
[1735735799628,0.26076538,706.68,706.16,1.132]
[1735735799828,0.26076538,706.67,706.16,1.132]
[1735735800032,0.26076538,706.66,706.16,1.132]
[1735735800231,0.26076538,706.65,706.16,1.132]
[1735735800528,0.2607625,706.64,706.16,1.132]
[1735735800737,0.2607625,706.63,706.16,1.132]
[1735735801033,0.2607625,706.62,706.16,1.132]
[1735735801233,0.2607625,706.61,706.16,1.132]
[1735735801436,0.2607625,706.6,706.16,1.132]
[1735735801634,0.2607625,706.59,706.16,1.132]
[1735735801933,0.2607625,706.58,706.16,1.132]
[1735735802134,1.47869071,706.64,706.16,1.132]
[1735735802135,0.2607625,706.57,706.16,1.132]
[1735735802334,0.2607625,706.63,706.16,1.132]
[1735735802633,0.2607625,706.62,706.16,1.132]
[1735735802828,0.2607625,706.61,706.16,1.132]
[1735735803032,0.26075728,706.6,706.16,1.132]
[1735735803233,1.47869071,706.64,706.16,1.132]
[1735735803234,0.26075728,706.59,706.16,1.132]
[1735735803534,0.26075728,706.58,706.16,1.132]
[1735735803729,0.26075728,706.57,706.16,1.132]
[1735735803931,0.26075728,706.56,706.16,1.132]